fUST/lending_fUST_20250501
["ID","MTS","AMOUNT","RATE_DAILY","PERIOD"]
[359537798,1746096654483,-400.0,0.00036164,12]
[359537800,1746096654492,-603.47,0.00036164,12]
[359537802,1746096654501,-482.3229878,0.00036164,12]
[359537804,1746096654511,-404.65,0.00036164,12]
[359537806,1746096654520,-1600.93,0.00036164,12]
[359537808,1746096654529,-1512.75,0.00036164,12]
[359537810,1746096654538,-1068.22,0.00036164,12]
[359537812,1746096654547,-1715.43,0.00036164,12]
[359537813,1746096654556,-421.82,0.00036164,12]
[359537815,1746096654566,-400.0,0.00036164,12]
[359537818,1746096654576,-448.06170241,0.00036164,12]
[359537820,1746096654585,-205.71129943,0.00036164,12]
[359537822,1746096654594,-400.0,0.00036164,12]
[359537824,1746096654603,-400.0,0.00036164,12]
[359537826,1746096654612,-1878.01,0.00036164,12]
[359537828,1746096654621,-520.36,0.00036164,7]
[359537830,1746096654631,-24151.59,0.00036164,12]
[359537832,1746096654640,-400.0,0.00036164,12]
[359537834,1746096654650,-967.92,0.00036164,12]
[359537836,1746096654659,-400.0,0.00036164,12]
[359537838,1746096654669,-618.55,0.00036164,12]
[359537840,1746096654679,-400.0,0.00036164,12]
[359537842,1746096654689,-400.0,0.00036164,12]
[359537844,1746096654698,-481.0111539,0.0003621,34]
[359537846,1746096654708,-250.0,0.000363,30]
[359537848,1746096654718,-950.0,0.00036356,5]
[359537850,1746096654728,-997.9892193,0.00036438,4]
[359537852,1746096654737,-902.74,0.00036438,12]
[359537854,1746096654747,-400.0,0.00036438,12]
[359537856,1746096654755,-416.28404768,0.00036438,12]
[359537858,1746096654765,-400.0,0.00036438,12]
[359537860,1746096654774,-400.0,0.00036438,12]
[359537862,1746096654783,-400.0,0.00036438,12]
[359537864,1746096654792,-400.0,0.00036438,12]
[359537866,1746096654802,-590.31,0.00036438,12]
[359537868,1746096654811,-492.25,0.00036438,12]
[359537870,1746096654821,-400.0,0.00036438,12]
[359537872,1746096654830,-400.0,0.00036438,12]
[359537874,1746096654839,-801.35,0.00036438,12]
[359537876,1746096654849,-400.0,0.00036438,12]
[359537878,1746096654858,-400.0,0.00036438,12]
[359537880,1746096654868,-400.0,0.00036438,12]
[359537882,1746096654877,-400.0,0.00036438,12]
[359537884,1746096654886,-423.58,0.00036438,12]
[359537886,1746096654895,-432.05,0.00036438,12]
[359537888,1746096654905,-500.0,0.00036438,12]
[359537890,1746096654915,-400.0,0.00036438,12]
[359537892,1746096654924,-400.0,0.00036438,12]
[359537894,1746096654933,-428.13,0.00036438,12]
[359537896,1746096654943,-400.0,0.00036438,12]
[359537898,1746096654951,-400.0,0.00036438,12]
[359537900,1746096654961,-500.0,0.00036438,12]
[359537902,1746096654970,-400.0,0.00036438,12]
[359537904,1746096654980,-426.4257593,0.00036438,12]
[359537906,1746096654990,-533.88,0.00036438,12]
[359537908,1746096654999,-400.0,0.00036438,12]
[359537910,1746096655009,-400.0,0.00036438,12]
[359537912,1746096655019,-400.0,0.00036438,12]
[359537914,1746096655029,-634.75,0.00036438,12]
[359537916,1746096655040,-400.0,0.00036438,12]
[359537918,1746096655049,-400.0,0.00036438,12]
[359537920,1746096655058,-218.95253822,0.00036438,12]
[359537922,1746096655068,-1060.8,0.00036438,12]
[359537924,1746096655078,-326.49803774,0.00036438,12]
[359537926,1746096655087,-400.0,0.00036438,12]
[359537928,1746096655096,-400.0,0.00036438,12]
[359537930,1746096655105,-400.0,0.00036438,12]
[359537932,1746096655115,-5879.35,0.00036438,12]
[359537934,1746096655125,-334.46607688,0.00036438,12]
[359537936,1746096655134,-400.0,0.00036438,12]
[359537938,1746096655144,-400.0,0.00036438,12]
[359537940,1746096655153,-400.0,0.00036438,12]
[359537942,1746096655163,-1242.1,0.00036438,12]
[359537944,1746096655172,-1506.06,0.00036438,12]
[359537946,1746096655182,-400.0,0.00036438,12]
[359537948,1746096655192,-400.0,0.00036438,12]
[359537950,1746096655202,-400.0,0.00036438,12]
[359537952,1746096655211,-972.05,0.00036438,12]
[359537954,1746096655221,-507.22430771,0.00036438,12]
[359537956,1746096655231,-400.0,0.00036438,12]
[359537970,1746096655350,-400.0,0.00036438,12]
[359537972,1746096655359,-437.91,0.00036438,12]
[359537974,1746096655369,-400.0,0.00036438,12]
[359537976,1746096655378,-400.0,0.00036438,12]
[359537978,1746096655387,-974.81,0.00036438,12]
[359537980,1746096655398,-400.0,0.00036438,12]
[359537982,1746096655407,-400.0,0.00036438,12]
[359537984,1746096655417,-922.16,0.00036438,12]
[359537986,1746096655426,-1363.87,0.00036438,12]
[359537988,1746096655436,-400.0,0.00036438,12]
[359537990,1746096655445,-400.0,0.00036438,12]
[359537992,1746096655454,-400.0,0.00036438,12]
[359537994,1746096655464,-1130.45,0.00036438,12]
[359537996,1746096655473,-1035.43,0.00036438,12]
[359537998,1746096655483,-400.0,0.00036438,12]
[359538000,1746096655492,-506.96585506,0.00036438,12]
[359538002,1746096655502,-400.0,0.00036438,12]
[359538004,1746096655511,-400.0,0.00036438,12]
[359538006,1746096655520,-544.71,0.00036438,12]
[359538008,1746096655529,-400.0,0.00036438,12]
[359538010,1746096655539,-400.0,0.00036438,12]
[359538012,1746096655548,-999.06,0.00036438,12]
[359538013,1746096655559,-400.0,0.00036438,12]
[359538016,1746096655568,-400.0,0.00036438,12]
[359538018,1746096655578,-487.72,0.00036438,12]
[359538020,1746096655588,-400.0,0.00036438,12]
[359538022,1746096655598,-400.0,0.00036438,12]
[359538024,1746096655607,-400.0,0.00036438,12]
[359538026,1746096655617,-152.29440871,0.00036438,12]
[359538028,1746096655626,-400.0,0.00036438,12]
[359538030,1746096655635,-419.92891347,0.00036438,12]
[359538032,1746096655644,-687.88,0.00036438,12]
[359538034,1746096655653,-423.6714648,0.00036438,12]
[359538036,1746096655663,-400.0,0.00036438,12]
[359538038,1746096655672,-400.0,0.00036438,12]
[359538040,1746096655681,-400.0,0.00036438,12]
[359538042,1746096655691,-400.0,0.00036438,12]
[359538044,1746096655700,-766.29,0.00036438,12]
[359538046,1746096655709,-400.0,0.00036438,12]
[359538048,1746096655719,-400.0,0.00036438,12]
[359538050,1746096655729,-414.4,0.00036438,12]
[359538052,1746096655738,-437.32,0.00036438,12]
[359538054,1746096655749,-400.0,0.00036438,12]
[359538055,1746096655758,-400.0,0.00036438,12]
[359538056,1746096655768,-711.38,0.00036438,12]
[359538057,1746096655778,-780.7,0.00036438,12]
[359538058,1746096655787,-850.81,0.00036438,12]
[359538059,1746096655797,-1690.3,0.00036438,12]
[359538060,1746096655807,-400.0,0.00036438,12]
[359538061,1746096655817,-400.0,0.00036438,12]
[359538062,1746096655826,-173.06812321,0.00036438,12]
[359538063,1746096655835,-400.0,0.00036438,12]
[359538064,1746096655845,-400.0,0.00036438,12]
[359538065,1746096655854,-400.0,0.00036438,12]
[359538066,1746096655863,-786.89,0.00036438,12]
[359538067,1746096655873,-640.11,0.00036438,12]
[359538069,1746096655882,-417.64,0.00036438,12]
[359538071,1746096655892,-400.0,0.00036438,12]
[359538073,1746096655901,-584.45,0.00036438,12]
[359538075,1746096655910,-400.0,0.00036438,12]
[359538077,1746096655920,-400.0,0.00036438,12]
[359538079,1746096655930,-400.0,0.00036438,12]
[359538081,1746096655939,-868.0,0.00036438,12]
[359538083,1746096655948,-716.32,0.00036438,12]
[359538085,1746096655957,-400.0,0.00036438,12]
[359538087,1746096655967,-642.27,0.00036438,12]
[359538089,1746096655976,-402.72279566,0.00036438,12]
[359538091,1746096655986,-400.0,0.00036438,12]
[359538093,1746096655995,-400.0,0.00036438,12]
[359538095,1746096656005,-7263.1,0.00036438,12]
[359538097,1746096656015,-400.0,0.00036438,12]
[359538099,1746096656024,-400.0,0.00036438,12]
[359538101,1746096656037,-474.85,0.00036438,12]
[359538104,1746096656047,-400.0,0.00036438,12]
[359538106,1746096656056,-1279.87,0.00036438,12]
[359538108,1746096656065,-671.773696,0.00036438,14]
[359538110,1746096656075,-400.0,0.00036438,12]
[359538112,1746096656084,-400.0,0.00036438,12]
[359538114,1746096656093,-400.0,0.00036438,12]
[359538116,1746096656103,-671.773696,0.00036438,14]
[359538118,1746096656112,-400.0,0.00036438,12]
[359538120,1746096656121,-782.18,0.00036438,12]
[359538122,1746096656131,-613.22,0.00036438,12]
[359538124,1746096656149,-663.26,0.00036438,12]
[359538127,1746096656175,-1214.5,0.00036438,12]
[359538130,1746096656192,-721.89,0.00036438,12]
[359538133,1746096656210,-423.13882178,0.00036438,12]
[359538136,1746096656229,-749.12,0.00036438,12]
[359538139,1746096656247,-653.13,0.00036438,12]
[359538141,1746096656264,-400.0,0.00036438,12]
[359538144,1746096656282,-400.0,0.00036438,12]
[359538147,1746096656296,-400.0,0.00036438,12]
[359538150,1746096656313,-2249.58,0.00036438,12]
[359538152,1746096656329,-400.0,0.00036438,12]
[359538155,1746096656347,-400.0,0.00036438,12]
[359538158,1746096656364,-400.0,0.00036438,12]
[359538160,1746096656376,-400.0,0.00036438,12]
[359538163,1746096656397,-206.08406753,0.00036438,12]
[359538166,1746096656410,-1189.09,0.00036438,12]
[359538169,1746096656426,-7409.08,0.00036438,12]
[359538171,1746096656438,-400.0,0.00036438,12]
[359538173,1746096656452,-5309.34,0.00036438,2]
[359538176,1746096656466,-587.93,0.00036438,12]
[359538179,1746096656482,-449.26280319,0.00036438,12]
[359538181,1746096656497,-400.0,0.00036438,12]
[359538184,1746096656511,-151.0,0.00036438,14]
[359538186,1746096656525,-1353.42,0.00036438,12]
[359538188,1746096656536,-400.0,0.00036438,12]
[359538191,1746096656548,-435.21586998,0.00036438,12]
[359538194,1746096656562,-400.0,0.00036438,12]
[359538196,1746096656575,-406.49,0.00036438,12]
[359538199,1746096656589,-400.0,0.00036438,12]
[359538201,1746096656603,-400.0,0.00036438,12]
[359538204,1746096656617,-400.0,0.00036438,12]
[359538206,1746096656632,-409.44271054,0.00036438,12]
[359538209,1746096656645,-285.35836824,0.00036438,12]
[359538211,1746096656660,-400.0,0.00036438,12]
[359538214,1746096656674,-400.0,0.00036438,12]
[359538216,1746096656688,-400.0,0.00036438,12]
[359538219,1746096656702,-2637.7,0.00036438,12]
[359538221,1746096656716,-1022.26,0.00036438,12]
[359538223,1746096656730,-400.0,0.00036438,12]
[359538225,1746096656746,-586.11,0.00036438,12]
[359538227,1746096656760,-400.0,0.00036438,12]
[359538229,1746096656774,-400.0,0.00036438,12]
[359538231,1746096656788,-4465.41,0.00036438,12]
[359538233,1746096656802,-5251.3,0.00036438,12]
[359538234,1746096656816,-2091.05,0.00036438,12]
[359538236,1746096656831,-3705.22,0.00036438,12]
[359538238,1746096656845,-151.0,0.00036438,14]
[359538240,1746096656859,-502.45177254,0.00036438,12]
[359538242,1746096656873,-400.0,0.00036438,12]
[359538244,1746096656886,-200.0,0.00036438,12]
[359538245,1746096656900,-1883.95,0.00036438,12]
[359538247,1746096656914,-400.0,0.00036438,12]
[359538249,1746096656928,-307.19737373,0.00036438,12]
[359538251,1746096656942,-791.98,0.00036438,12]
[359538253,1746096656955,-400.0,0.00036438,12]
[359538255,1746096656969,-400.0,0.00036438,12]
[359538257,1746096656983,-369.32159728,0.00036438,12]
[359538259,1746096656998,-731.82,0.00036438,12]
[359538261,1746096657012,-400.0,0.00036438,12]
[359538263,1746096657025,-400.0,0.00036438,12]
[359538265,1746096657042,-400.0,0.00036438,12]
[359538267,1746096657056,-413.31557164,0.00036438,12]
[359538268,1746096657069,-400.0,0.00036438,12]
[359538270,1746096657084,-151.0,0.00036438,14]
[359538272,1746096657098,-400.0,0.00036438,12]
[359538274,1746096657112,-413.07,0.00036438,12]
[359538276,1746096657125,-400.0,0.00036438,12]
[359538278,1746096657140,-1782.62,0.00036438,12]
[359538280,1746096657154,-151.0,0.00036438,14]
[359538282,1746096657168,-400.0,0.00036438,12]
[359538284,1746096657182,-400.0,0.00036438,12]
[359538286,1746096657196,-503.48120848,0.00036438,12]
[359538288,1746096657209,-400.0,0.00036438,12]
[359538289,1746096657219,-2643.74,0.00036438,12]
[359538291,1746096657229,-400.0,0.00036438,12]
[359538293,1746096657239,-400.0,0.00036438,12]
[359538294,1746096657249,-400.0,0.00036438,12]
[359538296,1746096657258,-652.63,0.00036438,12]
[359538298,1746096657268,-400.0,0.00036438,12]
[359538299,1746096657278,-2256.5,0.00036438,12]
[359538301,1746096657287,-880.9,0.00036438,12]
[359538317,1746096657514,-1390.66,0.00036438,12]
[359538320,1746096657545,-400.0,0.00036438,12]
[359538322,1746096657560,-553.06,0.00036438,12]
[359538324,1746096657570,-746.24,0.00036438,12]
[359538326,1746096657580,-734.35,0.00036438,12]
[359538327,1746096657589,-400.0,0.00036438,12]
[359538329,1746096657599,-400.0,0.00036438,12]
[359538330,1746096657608,-400.0,0.00036438,12]
[359538332,1746096657618,-400.0,0.00036438,12]
[359538334,1746096657628,-400.0,0.00036438,12]
[359538335,1746096657637,-400.0,0.00036438,12]
[359538337,1746096657647,-400.0,0.00036438,12]
[359538339,1746096657656,-1827.75,0.00036438,12]
[359538340,1746096657665,-400.0,0.00036438,12]
[359538342,1746096657675,-400.0,0.00036438,12]
[359538344,1746096657686,-400.0,0.00036438,12]
[359538345,1746096657696,-874.5,0.00036438,12]
[359538347,1746096657706,-400.0,0.00036438,12]
[359538349,1746096657715,-400.0,0.00036438,12]
[359538350,1746096657724,-400.0,0.00036438,12]
[359538352,1746096657734,-400.0,0.00036438,12]
[359538353,1746096657743,-400.0,0.00036438,12]
[359538355,1746096657752,-400.0,0.00036438,12]
[359538357,1746096657761,-400.0,0.00036438,12]
[359538358,1746096657770,-400.0,0.00036438,12]
[359538360,1746096657779,-1392.23,0.00036438,12]
[359538362,1746096657788,-663.52,0.00036438,12]
[359538363,1746096657799,-400.0,0.00036438,12]
[359538365,1746096657809,-2892.0,0.00036438,12]
[359538367,1746096657818,-300.0,0.00036438,12]
[359538368,1746096657827,-400.0,0.00036438,12]
[359538370,1746096657836,-1206.57,0.00036438,12]
[359538372,1746096657846,-685.28,0.00036438,12]
[359538373,1746096657855,-403.23344268,0.00036438,12]
[359538375,1746096657864,-326.91915796,0.00036438,12]
[359538376,1746096657873,-1698.64,0.00036438,12]
[359538378,1746096657882,-930.63,0.00036438,12]
[359538380,1746096657891,-1999.55,0.00036438,12]
[359538381,1746096657901,-1385.06,0.00036438,12]
[359538383,1746096657910,-324.75170204,0.00036438,12]
[359538385,1746096657919,-400.0,0.00036438,12]
[359538386,1746096657929,-993.2,0.00036438,12]
[359538388,1746096657939,-948.73,0.00036438,12]
[359538390,1746096657947,-400.0,0.00036438,12]
[359538391,1746096657957,-608.21,0.00036438,12]
[359538393,1746096657966,-200.0,0.00036438,12]
[359538395,1746096657975,-477.285113,0.00036438,14]
[359538396,1746096657986,-400.0,0.00036438,12]
[359538398,1746096657995,-603.47,0.00036438,12]
[359538400,1746096658005,-404.65,0.00036438,12]
[359538401,1746096658014,-477.285113,0.00036438,14]
[359538403,1746096658023,-1600.93,0.00036438,12]
[359538404,1746096658035,-1512.75,0.00036438,12]
[359538406,1746096658044,-1068.22,0.00036438,12]
[359538408,1746096658054,-1715.43,0.00036438,12]
[359538409,1746096658063,-421.82,0.00036438,12]
[359538410,1746096658074,-415.35710909,0.00036438,12]
[359538411,1746096658083,-400.0,0.00036438,12]
[359538412,1746096658093,-400.0,0.00036438,12]
[359538413,1746096658102,-1878.01,0.00036438,12]
[359538414,1746096658112,-520.36,0.00036438,7]
[359538415,1746096658122,-24151.59,0.00036438,12]
[359538416,1746096658131,-400.0,0.00036438,12]
[359538417,1746096658141,-967.92,0.00036438,12]
[359538418,1746096658151,-400.0,0.00036438,12]
[359538419,1746096658161,-618.55,0.00036438,12]
[359538420,1746096658171,-400.0,0.00036438,12]
[359538421,1746096658180,-400.0,0.00036438,12]
[359538422,1746096658190,-1881.47591277,0.00036512,14]
[359538423,1746096658200,-902.74,0.00036712,12]
[359538424,1746096658210,-425.46186306,0.00036712,12]
[359538425,1746096658219,-400.0,0.00036712,12]
[359538426,1746096658229,-400.0,0.00036712,12]
[359538428,1746096658239,-400.0,0.00036712,12]
[359538430,1746096658248,-400.0,0.00036712,12]
[359538432,1746096658258,-590.31,0.00036712,12]
[359538434,1746096658267,-492.25,0.00036712,12]
[359538436,1746096658277,-400.0,0.00036712,12]
[359538438,1746096658286,-400.0,0.00036712,12]
[359538440,1746096658296,-801.35,0.00036712,12]
[359538442,1746096658305,-405.90429032,0.00036712,12]
[359538444,1746096658315,-400.0,0.00036712,12]
[359538446,1746096658325,-400.0,0.00036712,12]
[359538448,1746096658335,-514.47396686,0.00036712,12]
[359538450,1746096658345,-423.58,0.00036712,12]
[359538452,1746096658354,-432.05,0.00036712,12]
[359538454,1746096658364,-500.0,0.00036712,12]
[359538456,1746096658373,-400.0,0.00036712,12]
[359538458,1746096658383,-400.0,0.00036712,12]
[359538460,1746096658392,-428.13,0.00036712,12]
[359538462,1746096658402,-308.13070881,0.00036712,12]
[359538464,1746096658412,-400.0,0.00036712,12]
[359538466,1746096658421,-507.17935352,0.00036712,12]
[359538468,1746096658431,-400.0,0.00036712,12]
[359538470,1746096658440,-533.88,0.00036712,12]
[359538472,1746096658448,-513.46129227,0.00036712,12]
[359538474,1746096658458,-400.0,0.00036712,12]
[359538476,1746096658467,-400.0,0.00036712,12]
[359538478,1746096658477,-634.75,0.00036712,12]
[359538480,1746096658487,-400.0,0.00036712,12]
[359538482,1746096658496,-400.0,0.00036712,12]
[359538484,1746096658506,-1060.8,0.00036712,12]
[359538486,1746096658515,-400.0,0.00036712,12]
[359538488,1746096658524,-400.0,0.00036712,12]
[359538490,1746096658533,-400.0,0.00036712,12]
[359538492,1746096658542,-5879.35,0.00036712,12]
[359538494,1746096658551,-400.0,0.00036712,12]
[359538496,1746096658561,-400.0,0.00036712,12]
[359538498,1746096658571,-400.0,0.00036712,12]
[359538500,1746096658581,-1242.1,0.00036712,12]
[359538502,1746096658590,-1506.06,0.00036712,12]
[359538504,1746096658600,-400.0,0.00036712,12]
[359538506,1746096658609,-400.0,0.00036712,12]
[359538508,1746096658618,-400.0,0.00036712,12]
[359538510,1746096658627,-972.05,0.00036712,12]
[359538512,1746096658637,-400.0,0.00036712,12]
[359538514,1746096658646,-400.0,0.00036712,12]
[359538516,1746096658656,-437.91,0.00036712,12]
[359538518,1746096658665,-400.0,0.00036712,12]
[359538520,1746096658675,-400.0,0.00036712,12]
[359538522,1746096658684,-974.81,0.00036712,12]
[359538524,1746096658694,-400.0,0.00036712,12]
[359538526,1746096658702,-400.0,0.00036712,12]
[359538528,1746096658712,-922.16,0.00036712,12]
[359538530,1746096658721,-1363.87,0.00036712,12]
[359538532,1746096658731,-400.0,0.00036712,12]
[359538534,1746096658740,-400.0,0.00036712,12]
[359538536,1746096658749,-400.0,0.00036712,12]
[359538538,1746096658759,-1130.45,0.00036712,12]
[359538540,1746096658768,-1035.43,0.00036712,12]
[359538542,1746096658777,-213.23752237,0.00036712,12]
[359538544,1746096658786,-400.0,0.00036712,12]
[359538546,1746096658795,-210.02382031,0.00036712,12]
[359538548,1746096658804,-544.71,0.00036712,12]
[359538550,1746096658813,-400.0,0.00036712,12]
[359538552,1746096658822,-400.0,0.00036712,12]
[359538554,1746096658831,-999.06,0.00036712,12]
[359538556,1746096658841,-400.0,0.00036712,12]
[359538558,1746096658850,-308.24158091,0.00036712,12]
[359538560,1746096658859,-487.72,0.00036712,12]
[359538562,1746096658869,-191.28215934,0.00036712,12]
[359538564,1746096658878,-203.65779006,0.00036712,12]
[359538566,1746096658887,-400.0,0.00036712,12]
[359538568,1746096658896,-400.0,0.00036712,12]
[359538570,1746096658906,-687.88,0.00036712,12]
[359538572,1746096658916,-314.95149804,0.00036712,12]
[359538574,1746096658925,-400.0,0.00036712,12]
[359538576,1746096658935,-400.0,0.00036712,12]
[359538578,1746096658943,-400.0,0.00036712,12]
[359538580,1746096658953,-766.29,0.00036712,12]
[359538582,1746096658962,-400.0,0.00036712,12]
[359538584,1746096658972,-200.00152442,0.00036712,12]
[359538586,1746096658981,-414.4,0.00036712,12]
[359538588,1746096658991,-437.32,0.00036712,12]
[359538591,1746096659000,-400.0,0.00036712,12]
[359538593,1746096659010,-400.0,0.00036712,12]
[359538595,1746096659020,-711.38,0.00036712,12]
[359538597,1746096659031,-780.7,0.00036712,12]
[359538599,1746096659042,-850.81,0.00036712,12]
[359538601,1746096659052,-1690.3,0.00036712,12]
[359538603,1746096659062,-400.0,0.00036712,12]
[359538605,1746096659071,-400.0,0.00036712,12]
[359538607,1746096659081,-400.0,0.00036712,12]
[359538609,1746096659090,-400.0,0.00036712,12]
[359538611,1746096659100,-400.0,0.00036712,12]
[359538613,1746096659109,-786.89,0.00036712,12]
[359538615,1746096659118,-640.11,0.00036712,12]
[359538617,1746096659127,-400.0,0.00036712,12]
[359538619,1746096659137,-417.64,0.00036712,12]
[359538621,1746096659148,-584.45,0.00036712,12]
[359538623,1746096659157,-400.0,0.00036712,12]
[359538625,1746096659167,-400.0,0.00036712,12]
[359538627,1746096659176,-400.0,0.00036712,12]
[359538629,1746096659186,-868.0,0.00036712,12]
[359538631,1746096659199,-716.32,0.00036712,12]
[359538633,1746096659208,-400.0,0.00036712,12]
[359538635,1746096659218,-642.27,0.00036712,12]
[359538637,1746096659228,-400.0,0.00036712,12]
[359538639,1746096659239,-400.0,0.00036712,12]
[359538641,1746096659248,-7263.1,0.00036712,12]
[359538643,1746096659257,-325.78522718,0.00036712,12]
[359538645,1746096659266,-400.0,0.00036712,12]
[359538647,1746096659276,-474.85,0.00036712,12]
[359538649,1746096659285,-400.0,0.00036712,12]
[359538651,1746096659294,-1279.87,0.00036712,12]
[359538653,1746096659303,-500.0,0.00036712,12]
[359538655,1746096659312,-400.0,0.00036712,12]
[359538657,1746096659322,-400.0,0.00036712,12]
[359538659,1746096659331,-172.94995933,0.00036712,12]
[359538661,1746096659341,-782.18,0.00036712,12]
[359538663,1746096659350,-613.22,0.00036712,12]
[359538665,1746096659361,-663.26,0.00036712,12]
[359538667,1746096659371,-1214.5,0.00036712,12]
[359538669,1746096659381,-721.89,0.00036712,12]
[359538671,1746096659390,-749.12,0.00036712,12]
[359538674,1746096659400,-653.13,0.00036712,12]
[359538675,1746096659410,-400.0,0.00036712,12]
[359538677,1746096659420,-400.0,0.00036712,12]
[359538679,1746096659430,-400.0,0.00036712,12]
[359538681,1746096659439,-2249.58,0.00036712,12]
[359538683,1746096659449,-400.0,0.00036712,12]
[359538685,1746096659458,-400.0,0.00036712,12]
[359538688,1746096659468,-400.0,0.00036712,12]
[359538689,1746096659480,-400.0,0.00036712,12]
[359538691,1746096659490,-1189.09,0.00036712,12]
[359538694,1746096659499,-7409.08,0.00036712,12]
[359538696,1746096659509,-400.0,0.00036712,12]
[359538698,1746096659518,-5309.34,0.00036712,2]
[359538700,1746096659528,-587.93,0.00036712,12]
[359538702,1746096659537,-400.0,0.00036712,12]
[359538704,1746096659546,-1353.42,0.00036712,12]
[359538706,1746096659555,-400.0,0.00036712,12]
[359538708,1746096659564,-221.35051402,0.00036712,12]
[359538710,1746096659574,-406.49,0.00036712,12]
[359538712,1746096659583,-400.0,0.00036712,12]
[359538714,1746096659592,-190.38101066,0.00036712,12]
[359538716,1746096659601,-400.0,0.00036712,12]
[359538718,1746096659611,-400.0,0.00036712,12]
[359538720,1746096659620,-150.0,0.00036712,12]
[359538722,1746096659629,-400.0,0.00036712,12]
[359538724,1746096659638,-2637.7,0.00036712,12]
[359538726,1746096659648,-1022.26,0.00036712,12]
[359538728,1746096659657,-400.0,0.00036712,12]
[359538730,1746096659666,-586.11,0.00036712,12]
[359538732,1746096659676,-215.54290479,0.00036712,12]
[359538734,1746096659685,-400.0,0.00036712,12]
[359538736,1746096659694,-4465.41,0.00036712,12]
[359538738,1746096659703,-5251.3,0.00036712,12]
[359538740,1746096659712,-2091.05,0.00036712,12]
[359538742,1746096659722,-3705.22,0.00036712,12]
[359538744,1746096659731,-400.0,0.00036712,12]
[359538746,1746096659741,-1883.95,0.00036712,12]
[359538748,1746096659751,-400.0,0.00036712,12]
[359538750,1746096659760,-791.98,0.00036712,12]
[359538752,1746096659769,-400.0,0.00036712,12]
[359538754,1746096659778,-400.0,0.00036712,12]
[359538756,1746096659788,-731.82,0.00036712,12]
[359538758,1746096659798,-400.0,0.00036712,12]
[359538760,1746096659807,-400.0,0.00036712,12]
[359538762,1746096659816,-400.0,0.00036712,12]
[359538764,1746096659826,-400.0,0.00036712,12]
[359538766,1746096659836,-400.0,0.00036712,12]
[359538768,1746096659844,-413.07,0.00036712,12]
[359538770,1746096659853,-400.0,0.00036712,12]
[359538772,1746096659863,-1782.62,0.00036712,12]
[359538774,1746096659872,-400.0,0.00036712,12]
[359538776,1746096659882,-400.0,0.00036712,12]
[359538778,1746096659891,-400.0,0.00036712,12]
[359538780,1746096659900,-2643.74,0.00036712,12]
[359538782,1746096659910,-400.0,0.00036712,12]
[359538784,1746096659919,-400.0,0.00036712,12]
[359538786,1746096659929,-400.0,0.00036712,12]
[359538788,1746096659938,-652.63,0.00036712,12]
[359538790,1746096659948,-400.0,0.00036712,12]
[359538793,1746096659958,-2256.5,0.00036712,12]
[359538795,1746096659967,-880.9,0.00036712,12]